fUSD/lending_fUSD_20250812
["ID","MTS","AMOUNT","RATE_DAILY","PERIOD"]
[378702495,1754964632690,-700.0,0.00028368,10]
[378702496,1754964632700,-700.0,0.00028368,10]
[378702497,1754964632710,-700.0,0.00028368,10]
[378702498,1754964632720,-700.0,0.00028368,10]
[378702499,1754964632730,-700.0,0.00028368,10]
[378702502,1754964632739,-700.0,0.00028368,10]
[378702505,1754964632749,-700.0,0.00028368,10]
[378702507,1754964632758,-700.0,0.00028368,10]
[378702509,1754964632768,-578.35114053,0.00028572,10]
[378702511,1754964632778,-150.63,0.0002911,2]
[378702513,1754964632788,-578.35114053,0.00029797,12]
[378702515,1754964632798,-168.21516127,0.00030148,61]
[378702517,1754964632808,-172.69247606,0.00030225,25]
[378702519,1754964632821,-654.528,0.00030225,25]
[378702521,1754964632831,-578.35114053,0.00031021,15]
[378702523,1754964632841,-578.35114053,0.00032245,18]
[378702526,1754964632851,-168.21516127,0.00033272,68]
[378702528,1754964632861,-578.35114053,0.00033469,20]
[378702530,1754964632871,-578.35114053,0.00034693,23]
[378702532,1754964632881,-315.29,0.00035,2]
[378702534,1754964632891,-578.35114053,0.00035917,25]
[378702536,1754964632901,-168.21516127,0.00036397,76]
[378702538,1754964632911,-208.1,0.00036859,2]
[378702540,1754964632920,-155.0,0.00036859,2]
[378702542,1754964632930,-155.0,0.00036859,2]
[378702545,1754964632940,-578.35114053,0.00037141,28]
[378702549,1754964632950,-5000.0,0.00037328,2]
[378702552,1754964632960,-300.0,0.00037419,2]
[378702555,1754964632969,-170.0,0.00037431,7]
[378702557,1754964632978,-1000.0,0.00037568,2]
[378702559,1754964632987,-154.59,0.00037721,2]
[378702561,1754964632997,-2772.61,0.00037864,2]
[378702563,1754964633007,-578.35114053,0.00038366,31]
[378702565,1754964633016,-315.29,0.000385,2]
[378702567,1754964633025,-172.49,0.00039449,2]
[378702569,1754964633035,-666.0,0.0003948,3]
[378702571,1754964633045,-168.21516127,0.00039521,83]
[378702572,1754964633056,-578.35114053,0.0003959,33]
[378702574,1754964633065,-154.59,0.00039655,2]
[378702576,1754964633075,-500.2779,0.0004,120]
[378702578,1754964633084,-615.82,0.0004,120]
[378702580,1754964633095,-1000.0,0.0004005,120]
[378702581,1754964633104,-2000.0,0.000405,2]
[378702582,1754964633115,-578.35114053,0.00040814,36]
[378702583,1754964633125,-185.87,0.00040965,2]
[378702584,1754964633135,-150.0,0.00041375,30]
[378702585,1754964633144,-150.0,0.00041375,30]
[378702586,1754964633154,-154.03887866,0.00041375,30]
[378702587,1754964633164,-150.0,0.00041375,30]
[378702588,1754964633175,-245.44904796,0.00041375,30]
[378702589,1754964633185,-268.39696008,0.00041375,30]
[378702590,1754964633195,-152.26437297,0.00041375,30]
[378702591,1754964633205,-150.0,0.00041375,30]
[378702592,1754964633215,-152.20393157,0.00041375,30]
[378702593,1754964633225,-154.59,0.00041589,120]
[378702594,1754964633235,-578.35114053,0.00042038,39]
[378702595,1754964633246,-1000.0,0.00042265,2]
[378702596,1754964633256,-200.0,0.00042405,2]
[378702597,1754964633266,-876.92,0.00042516,120]
[378702598,1754964633276,-150.0,0.00042525,30]
[378702599,1754964633286,-205.98,0.00042527,120]
[378702600,1754964633296,-168.21516127,0.00042646,91]
[378702601,1754964633306,-200.0,0.00042672,2]
[378702602,1754964633316,-200.0,0.00042672,2]
[378702603,1754964633326,-200.0,0.00042672,2]
[378702604,1754964633335,-200.0,0.00042672,2]
[378702605,1754964633345,-200.0,0.00042672,2]
[378702606,1754964633360,-200.0,0.00042672,2]
[378702608,1754964633369,-200.0,0.00042672,2]
[378702609,1754964633379,-200.0,0.00042672,2]
[378702610,1754964633389,-200.0,0.00042672,2]
[378702611,1754964633399,-200.0,0.00042672,2]
[378702612,1754964633410,-200.0,0.00042672,2]
[378702613,1754964633419,-200.0,0.00042672,2]
[378702614,1754964633429,-200.0,0.00042672,2]
[378702615,1754964633438,-200.0,0.00042672,2]
[378702616,1754964633448,-200.0,0.00042672,2]
[378702617,1754964633457,-200.0,0.00042672,2]
[378702618,1754964633466,-200.0,0.00042672,2]
[378702619,1754964633476,-200.0,0.00042672,2]
[378702620,1754964633485,-200.0,0.00042672,2]
[378702621,1754964633495,-200.0,0.00042672,2]
[378702622,1754964633505,-578.35114053,0.00043262,41]
[378702623,1754964633515,-2000.0,0.000433,2]
[378702624,1754964633524,-154.59,0.00043523,120]
[378702625,1754964633533,-150.0,0.00043674,30]
[378702626,1754964633543,-150.0,0.00043674,30]
[378702627,1754964633553,-150.0,0.00043674,30]
[378702628,1754964633562,-700.0,0.00043836,26]
[378702629,1754964633572,-9800.0,0.00044,120]
[378702630,1754964633581,-843.0035059,0.00044,120]
[378702631,1754964633592,-211.18,0.00044071,2]
[378702632,1754964633602,-20000.0,0.000442,120]
[378702633,1754964633612,-4566.83413687,0.00044238,120]
[378702634,1754964633623,-3293.17620958,0.000444,120]
[378702635,1754964633640,-16706.82379042,0.000444,120]
[378702636,1754964633651,-578.35114053,0.00044486,44]
[378702637,1754964633661,-10000.0,0.000445,120]
[378702638,1754964633674,-211.18,0.00044512,2]
[378702639,1754964633685,-150.63,0.00044521,2]
[378702640,1754964633695,-10000.0,0.000446,120]
[378702641,1754964633707,-521.0,0.00044778,10]
[378702642,1754964633717,-10000.0,0.000448,120]
[378702643,1754964633727,-150.0,0.00044823,30]
[378702644,1754964633737,-151.5393015,0.00044953,2]
[378702645,1754964633747,-10000.0,0.00045,120]
[378702646,1754964633758,-503.30908306,0.00045,120]
[378702647,1754964633768,-1000.0,0.00045011,90]
[378702648,1754964633778,-400.0,0.000454,120]
[378702649,1754964633788,-154.59,0.00045457,120]
[378702650,1754964633798,-530.92,0.000455,120]
[378702651,1754964633808,-1006.65725739,0.0004553,2]
[378702652,1754964633822,-400.0,0.000456,120]
[378702653,1754964633832,-578.35114053,0.0004571,46]
[378702654,1754964633843,-1000.0,0.00045753,120]
[378702655,1754964633855,-168.21516127,0.0004577,98]
[378702656,1754964633866,-2240.59128803,0.00045839,15]
[378702657,1754964633877,-3686.92037802,0.00045839,18]
[378702658,1754964633889,-171.33230895,0.00045839,15]
[378702659,1754964633900,-2240.59128799,0.00045845,15]
[378702660,1754964633910,-1045.3142,0.0004585,120]
[378702661,1754964633919,-2240.59128799,0.0004585,15]
[378702662,1754964633930,-2240.59128799,0.00045856,15]
[378702663,1754964633940,-158.41151746,0.00045859,21]
[378702664,1754964633950,-2240.59128799,0.00045862,15]
[378702665,1754964633962,-2240.59128799,0.00045867,15]
[378702666,1754964633972,-587.92935153,0.00045868,7]
[378702667,1754964633982,-862.25,0.00045868,120]
[378702668,1754964633991,-590.68,0.0004587,30]
[378702669,1754964634002,-609.3,0.0004587,30]
[378702670,1754964634011,-609.37,0.0004587,30]
[378702671,1754964634022,-595.51,0.0004587,30]
[378702672,1754964634032,-592.04,0.0004587,30]
[378702673,1754964634042,-2240.59128799,0.00045873,15]
[378702674,1754964634052,-2240.59128799,0.00045879,15]
[378702675,1754964634062,-2164.0,0.0004588,120]
[378702676,1754964634072,-2240.59128799,0.00045884,15]
[378702677,1754964634082,-182.69939971,0.0004589,120]
[378702678,1754964634091,-2062.0,0.0004589,120]
[378702679,1754964634101,-2240.59128799,0.0004589,15]
[378702680,1754964634112,-35694.195794,0.0004589,3]
[378702681,1754964634122,-9229.9789108,0.0004589,2]
[378702682,1754964634132,-88888.0,0.0004589,120]
[378702683,1754964634142,-5400.0,0.000459,50]
[378702684,1754964634152,-169.23,0.00045919,2]
[378702685,1754964634162,-509.70899861,0.00045919,7]
[378702686,1754964634172,-7755.9647932,0.00045927,120]
[378702687,1754964634184,-7407.80310688,0.00045927,120]
[378702688,1754964634201,-888.0,0.000225,3]
[378702689,1754964634211,-6357.3389148,0.00045927,120]
[378702690,1754964634223,-1147.14611115,0.00045927,120]
[378702691,1754964634240,-1776.0,0.0002474,3]
[378702692,1754964634250,-1264.97045417,0.00045927,120]
[378702693,1754964634263,-731.01688365,0.00045927,120]
[378702696,1754964638306,-888.0,0.00043172,3]
[378702697,1754964638315,-1776.0,0.00045412,3]
[378702698,1754964638326,-9550.59484186,0.00045927,120]
[378702699,1754964638360,-2479.59235858,0.00045927,120]
[378702700,1754964638372,-247.644778,0.00045928,14]
[378702701,1754964638383,-178.68335,0.00045928,14]
[378702702,1754964638393,-531.87987481,0.00045928,61]
[378702703,1754964638466,-2111.17232571,0.00045928,61]
[378702705,1754964640307,-888.0,0.00043672,3]
[378702706,1754964640318,-1776.0,0.00045912,3]
[378702707,1754964640327,-19613.26721953,0.00045928,61]
[378702708,1754964640359,-4711.1998265,0.00045928,61]
[378702709,1754964640467,-1139.22878096,0.00045928,61]
[378702710,1754964640479,-580.99100828,0.00045928,61]
[378702711,1754964640491,-512.27802841,0.00045928,61]
[378702712,1754964640524,-29445.79639132,0.00045928,61]
[378702713,1754964640536,-33104.52928233,0.00045928,61]
[378702714,1754964640579,-888.0,0.00044172,3]
[378702715,1754964640589,-2460.16467372,0.00045928,61]
[378702838,1754964643271,-353.92,0.00028368,10]
[378702839,1754964643325,-346.08,0.00028368,10]
[378702840,1754964643334,-163.56736003,0.00028368,10]
[378702841,1754964643345,-536.43263997,0.00028368,10]
[378702842,1754964643354,-63.56736003,0.00028368,10]
[378702848,1754964643434,-636.43263997,0.00028368,10]
[378702850,1754964643444,-700.0,0.00028368,10]
[378702852,1754964643453,-641.75972405,0.00028368,10]
[378702854,1754964643463,-347.24375788,0.0004589,2]
[378702856,1754964643473,-10428.42003666,0.00045928,61]
[378703015,1754964646268,-604.27,0.00045927,30]
[378703016,1754964646278,-971.58,0.00045928,61]
[378703017,1754964646289,-534.35,0.00045928,61]
[378703018,1754964646375,-9834.49073827,0.00045928,61]
[378703020,1754964646428,-259.39069927,0.00045928,61]
[378703021,1754964646440,-2738.83484083,0.00045928,61]
[378703022,1754964646534,-1481.06502726,0.00045928,61]
[378703088,1754964891317,158.78,0.00013699,2]
[378703192,1754965214195,-1000.0,0.000249,5]
[378703194,1754965214723,-1000.0,0.000249,5]
[378703195,1754965214748,-1000.0,0.00024901,5]
[378703235,1754965281999,500.0,0.00024,30]
[378703250,1754965322554,1000.0,0.000249,5]
[378703251,1754965322614,1000.0,0.00024909,5]
[378703252,1754965322809,888.0,0.00024899,3]
[378703270,1754965349522,501.4746282,0.0002451,30]
[378703287,1754965371981,595.0,0.00024,120]
[378703329,1754965442188,1000.0,0.000249,5]
[378703330,1754965442271,1000.0,0.00024909,5]
[378703331,1754965442461,888.0,0.00024899,3]
[378703392,1754965561946,1000.0,0.000249,5]
[378703395,1754965562757,888.0,0.00024899,3]
[378703418,1754965609298,303.70605368,0.00018,3]
[378703426,1754965620759,2629.37014858,0.00024,5]
[378703427,1754965621005,888.0,0.000245,3]
[378703454,1754965682322,1000.0,0.000249,5]
[378703456,1754965682438,1000.0,0.00024909,5]
[378703474,1754965715957,328.4845672,0.000246,120]
[378703528,1754965803768,1000.0,0.000249,5]
[378703529,1754965803838,1000.0,0.00024909,5]
[378703530,1754965804020,888.0,0.00024899,3]
[378703556,1754965831690,-205.65933263,0.000249,2]
[378703557,1754965831700,-300.81,0.000249,2]
[378703558,1754965831709,-305.54,0.00024901,2]
[378703559,1754965831719,-304.33,0.00024906,2]
[378703560,1754965831728,-300.76,0.00024935,2]
[378703561,1754965831737,-300.16,0.00025104,2]
[378703562,1754965831746,-888.0,0.000254,3]
[378703563,1754965831756,-205.65933259,0.0002659,5]
[378703564,1754965831766,-1776.0,0.0002674,3]
[378703565,1754965831775,-8529.16861897,0.000272,7]
[378703566,1754965831784,-1000.0,0.0002739,5]
[378703567,1754965831793,-1000.0,0.0002739,5]
[378703568,1754965831803,-1000.0,0.0002739,5]
[378703569,1754965831812,-1776.0,0.0002764,3]
[378703570,1754965831822,-197.69,0.00027659,2]
[378703571,1754965831831,-205.65933259,0.00028281,9]
[378703573,1754965831840,-205.65933259,0.00029971,13]
[378703574,1754965831848,-10513.25889405,0.0003,3]
[378703575,1754965831857,-163.23310176,0.0003013,120]
[378703576,1754965831866,-205.65933259,0.00031662,16]
[378703577,1754965831876,-803.84,0.0003244,30]
[378703578,1754965831884,-159.21273456,0.000328,30]
[378703579,1754965831894,-205.65933259,0.00033352,20]
[378703580,1754965831904,-158.78,0.00034247,2]
[378703581,1754965831913,-205.65933259,0.00035043,24]
[378703582,1754965831922,-567.27921292,0.00036,120]
[378703583,1754965831931,-151.0,0.00036141,2]
[378703584,1754965831941,-265.0,0.00036141,2]
[378703585,1754965831950,-9666.62,0.0003625,2]
[378703586,1754965831959,-205.65933259,0.00036733,27]
[378703587,1754965831968,-171.33230895,0.00036766,15]
[378703588,1754965831977,-3441.12568618,0.00036766,9]
[378703589,1754965831986,-322.44545145,0.00036766,2]
[378703590,1754965831995,-2177.04464957,0.00036866,30]
[378703599,1754965832069,888.0,0.00024899,3]
[378703619,1754965837709,-1111.39117117,0.00036866,30]
[378703641,1754965842480,-8640.44677327,0.00036866,30]
[378703642,1754965842490,-1663.36117572,0.00036866,30]
[378703643,1754965842535,-404641.28353205,0.00036866,30]
[378703644,1754965842544,-241.05236946,0.00036866,120]
[378703645,1754965842554,-165.96728378,0.00036866,120]
[378703646,1754965842563,-3892.43157844,0.00036866,2]
[378703647,1754965842572,-288.8718829,0.00036866,120]
[378703648,1754965842582,-438.44856653,0.00036866,120]
[378703650,1754965842591,-730.60794182,0.00036866,30]
[378703651,1754965842601,-415.50657988,0.00036866,120]
[378703652,1754965842610,-166.17996153,0.00036866,120]
[378703653,1754965842769,-1942.06384592,0.00036866,60]
[378703654,1754965842780,-300.10884134,0.00036866,120]
[378703655,1754965842790,-156.17760168,0.00036866,120]
[378703656,1754965842799,-1866.23114737,0.00036866,120]
[378703657,1754965842810,-5149.97490694,0.00036866,30]
[378703658,1754965842819,-2020.51705517,0.00036866,90]
[378703659,1754965842830,-170.62451528,0.00036866,120]
[378703660,1754965842840,-460.50924448,0.00036866,120]
[378703661,1754965842849,-1068.29489255,0.00036866,55]
[378703662,1754965842859,-254.18753821,0.00036866,7]
[378703663,1754965842869,-153.27321424,0.00036866,30]
[378703664,1754965842878,-260.08276321,0.00036866,30]
[378703665,1754965842888,-181.79743982,0.00036866,120]
[378703666,1754965842898,-494.31568246,0.00036866,60]
[378703667,1754965842907,-502.07297798,0.00036873,5]
[378703668,1754965842916,-504.22659764,0.00036873,5]
[378703669,1754965842926,-503.821512,0.00036873,5]
[378703670,1754965842935,-506.57844371,0.00036873,5]
[378703671,1754965842945,-154.59,0.00036896,2]
[378703672,1754965842954,-505.41488041,0.000369,5]
[378703673,1754965842964,-505.81919371,0.000369,5]
[378703674,1754965842974,-500.70220591,0.000369,5]
[378703675,1754965842983,-503.51792769,0.000369,5]
[378703676,1754965842992,-501.68192626,0.000369,3]
[378703677,1754965843001,-500.77775939,0.000369,5]
[378703679,1754965843011,-205.65933259,0.00038424,31]
[378703681,1754965843020,-803.84,0.00038664,120]
[378703683,1754965843029,-591.05,0.00039222,30]
[378703684,1754965843039,-322.44545138,0.00039357,2]
[378703685,1754965843048,-154.59,0.00039636,2]
[378703686,1754965843058,-165.43934894,0.00039835,2]
[378703704,1754965845385,-476.94431042,0.00037366,3]
[378703705,1754965845397,-347.14482896,0.00037366,3]
[378703706,1754965845409,-63.91086062,0.00037366,3]
[378703707,1754965845418,-1776.0,0.00039606,3]
[378703708,1754965845428,-134.56065106,0.00039835,2]
[378703709,1754965845440,-523.623,0.00039887,56]
[378703710,1754965845450,-170.0,0.00039887,7]
[378703711,1754965845459,-272.0,0.0004,120]
[378703712,1754965845470,-238.84419735,0.0004,120]
[378703713,1754965845479,-4627.3681643,0.0004,30]
[378703714,1754965845491,-2532.16340383,0.0004,30]
[378703715,1754965845544,-2064.0897074,0.0004,30]
[378703716,1754965845553,-4161.5792414,0.0004,30]
[378703717,1754965845563,-86.53884425,0.00040114,34]
[378703718,1754965845574,-119.12048834,0.00040114,34]
[378703719,1754965845584,-277.39773159,0.00040175,120]
[378703720,1754965845599,-722.60226841,0.00040175,120]
[378703721,1754965845608,-1000.0,0.00040479,2]
[378703722,1754965845617,-190.380618,0.000405,120]
[378703723,1754965845626,-171.33230895,0.00040593,15]
[378703724,1754965845636,-4595.14091577,0.00040635,120]
[378703725,1754965845647,-404.85908423,0.00040635,120]
[378703726,1754965845656,-1351.0,0.000408,2]
[378703727,1754965845665,-205.65933259,0.00041805,38]
[378703728,1754965845675,-322.44545138,0.00041947,28]
[378703729,1754965845684,-306.70295259,0.00042,30]
[378703730,1754965845694,-173.83478929,0.00042,120]
[378703731,1754965845703,-154.59,0.00042375,120]
[378703732,1754965845713,-3000.0,0.000425,100]
[378703733,1754965845722,-3000.0,0.000425,120]
[378703734,1754965845731,-666.0,0.0004331,3]
[378703735,1754965845741,-205.65933259,0.00043495,42]
[378703736,1754965845751,-3000.0,0.000435,120]
[378703738,1754965845760,-1351.42980873,0.000436,2]
[378703740,1754965845771,-4000.0,0.00043906,30]
[378703742,1754965845781,-260.9,0.00044,120]
[378703744,1754965845791,-169.64908609,0.00044,120]
[378703746,1754965845800,-414.56793231,0.00044,120]
[378703748,1754965845809,-171.33230895,0.0004442,15]
[378703750,1754965845819,-3000.0,0.000445,120]
[378703752,1754965845828,-322.44545138,0.00044538,28]
[378703754,1754965845837,-803.84,0.00044888,120]
[378703756,1754965845847,-98616.33136727,0.00044999,61]
[378703758,1754965845859,-258.28888369,0.00044999,61]
[378703759,1754965845871,-5590.456219,0.00044999,61]
[378703819,1754965963000,1653.12128967,0.00016,2]
[378703889,1754966118259,2000.0,0.00024901,5]
[378703890,1754966118550,2000.0,0.00024901,5]
[378703891,1754966119087,2000.0,0.00024901,5]
[378703892,1754966119122,2000.0,0.00024901,5]
[378703893,1754966119470,2000.0,0.00024901,5]
[378703894,1754966119714,888.0,0.000249,3]
[378703895,1754966119771,2000.0,0.00024901,5]
[378703896,1754966120049,2000.0,0.00024901,5]
[378703897,1754966120329,457.713,0.00024901,5]
[378703918,1754966174598,165.66,0.00013699,2]
[378704069,1754966643082,1000.0,0.0002495,5]
[378704085,1754966763332,1000.0,0.0002495,5]
[378704086,1754966763765,888.0,0.00024949,3]
[378704289,1754967031638,-249.91327731,0.000249,2]
[378704290,1754967031650,-491.21978248,0.00025052,5]
[378704291,1754967031662,-508.78021752,0.00025052,5]
[378704293,1754967031672,-116.66868348,0.00025204,5]
[378704294,1754967031683,-883.33131652,0.00025204,5]
[378704295,1754967031692,-187.12792433,0.0002535,2]
[378704296,1754967031702,-300.0,0.00027389,2]
[378704297,1754967031712,-195.21198436,0.00027389,2]
[378704298,1754967031796,-104.78801564,0.00027389,2]
[378704299,1754967031806,-1200.0,0.00027389,2]
[378704300,1754967031816,-300.0,0.00027389,2]
[378704301,1754967031826,-921.37184401,0.0002739,5]
[378704302,1754967031854,-78.62815599,0.0002739,5]
[378704303,1754967031864,-1000.0,0.0002739,5]
[378704304,1754967031875,-1000.0,0.0002739,5]
[378704305,1754967031886,-1070.0,0.00027689,2]
[378704306,1754967031898,-931.01,0.0002769,2]
[378704307,1754967031910,-1332.0,0.00030878,2]
[378704308,1754967031921,-1332.0,0.00031196,2]
[378704309,1754967031931,-1332.0,0.00031515,2]
[378704310,1754967031940,-1332.0,0.00031833,2]
[378704311,1754967031950,-597.07040251,0.00031833,2]
[378704312,1754967031960,-1332.0,0.00032151,2]
[378704313,1754967031970,-1332.0,0.0003247,2]
[378704314,1754967031980,-1332.0,0.00032788,2]
[378704315,1754967031990,-855.0,0.00035703,2]
[378704316,1754967031999,-154.59,0.00035703,2]
[378704317,1754967032009,-2167.64445395,0.0003588,120]
[378704318,1754967032020,-418.898,0.00036195,44]
[378704319,1754967032030,-204.20143768,0.000365,120]
[378704320,1754967032040,-150.0,0.00036866,36]
[378704321,1754967032050,-1000.0,0.00037784,2]
[378704322,1754967032059,-165.66,0.00038356,2]
[378704323,1754967032069,-5000.0,0.00039004,120]
[378704324,1754967032079,-1000.0,0.00039175,2]
[378704325,1754967032088,-7515.0,0.00039312,2]
[378704326,1754967032098,-154.59,0.00039356,2]
[378704327,1754967032107,-185.71,0.00040102,2]
[378704328,1754967032117,-666.0,0.0004066,3]
[378704329,1754967032126,-1141.32659042,0.00040976,2]
[378704330,1754967032138,-2164.22340958,0.00040976,2]
[378704331,1754967032149,-212.69,0.00040996,2]
[378704332,1754967032159,-1081.0,0.00041,7]
[378704334,1754967032170,-163.78068074,0.00041375,30]
[378704337,1754967032180,-207.00580586,0.00041375,30]
[378704339,1754967032189,-235.64588553,0.00041375,30]
[378704342,1754967032198,-153.81368971,0.00041375,30]
[378704344,1754967032208,-1774.38081617,0.000415,90]
[378704345,1754967032239,-888.0,0.000254,3]
[378704346,1754967032249,-1776.0,0.0002764,3]
[378704347,1754967032259,-3225.61918383,0.000415,90]
[378704348,1754967032269,-1000.0,0.000425,7]
[378704349,1754967032279,-200.0,0.00042672,2]
[378704350,1754967032289,-200.0,0.00042672,2]
[378704351,1754967032299,-200.0,0.00042672,2]
[378704352,1754967032308,-200.0,0.00042672,2]
[378704353,1754967032318,-200.0,0.00042672,2]
[378704354,1754967032328,-200.0,0.00042672,2]
[378704355,1754967032337,-200.0,0.00042672,2]
[378704356,1754967032347,-200.0,0.00042672,2]
[378704357,1754967032357,-200.0,0.00042672,2]
[378704358,1754967032367,-200.0,0.00042672,2]
[378704359,1754967032376,-200.0,0.00042672,2]
[378704360,1754967032386,-200.0,0.00042672,2]
[378704361,1754967032396,-200.0,0.00042672,2]
[378704362,1754967032406,-200.0,0.00042672,2]
[378704363,1754967032416,-200.0,0.00042672,2]
[378704364,1754967032426,-200.0,0.00042672,2]
[378704365,1754967032436,-200.0,0.00042672,2]
[378704366,1754967032445,-200.0,0.00042672,2]
[378704367,1754967032455,-200.0,0.00042672,2]
[378704368,1754967032465,-200.0,0.00042672,2]
[378704369,1754967032475,-3000.0,0.000428,120]
[378704370,1754967032486,-154.59,0.00043009,120]
[378704371,1754967032495,-182.0831156,0.0004316,17]
[378704372,1754967032505,-3000.0,0.000435,120]
[378704373,1754967032515,-1000.0,0.00044,7]
[378704374,1754967032529,-1000.0,0.00044071,2]
[378704375,1754967032539,-3000.0,0.000445,120]
[378704376,1754967032550,-154.10338004,0.00044538,14]
[378704377,1754967032560,-20017.9271893,0.000448,30]
[378704378,1754967032605,-13339.91199173,0.000448,30]
[378704379,1754967032616,-843.0035059,0.000448,30]
[378704380,1754967032626,-10961.78107239,0.000449,15]
[378704381,1754967032636,-5713.92905528,0.0004499,70]
[378704382,1754967032646,-152.57748505,0.00044998,61]
[378704383,1754967032656,-200.0,0.00044998,61]
[378704384,1754967032666,-207.4,0.00044998,61]
[378704385,1754967032677,-215.0738,0.00044998,61]
[378704386,1754967032687,-223.0315306,0.00044998,61]
[378704387,1754967032696,-231.28369723,0.00044998,61]
[378704388,1754967032706,-239.84119403,0.00044998,61]
[378704389,1754967032716,-248.71531821,0.00044998,61]
[378704390,1754967032727,-257.91778498,0.00044998,61]
[378704391,1754967032737,-267.46074303,0.00044998,61]
[378704392,1754967032747,-277.35679052,0.00044998,61]
[378704393,1754967032757,-287.61899177,0.00044998,61]
[378704394,1754967032768,-298.26089446,0.00044998,61]
[378704395,1754967032777,-309.29654756,0.00044998,61]
[378704396,1754967032788,-160.0,0.00044998,61]
[378704397,1754967032799,-320.74051982,0.00044998,61]
[378704398,1754967032809,-160.0,0.00044998,61]
[378704399,1754967032820,-332.60791905,0.00044998,61]
[378704400,1754967032830,-160.0,0.00044998,61]
[378704401,1754967032841,-344.91441206,0.00044998,61]
[378704402,1754967032852,-160.0,0.00044998,61]
[378704403,1754967032862,-357.6762453,0.00044998,61]
[378704404,1754967032872,-160.0,0.00044998,61]
[378704405,1754967032883,-370.91026638,0.00044998,61]
[378704406,1754967032894,-160.0,0.00044998,61]
[378704407,1754967032906,-384.63394623,0.00044998,61]
[378704408,1754967032918,-160.0,0.00044998,61]
[378704409,1754967032928,-398.86540225,0.00044998,61]
[378704410,1754967032939,-160.0,0.00044998,61]
[378704411,1754967032949,-160.0,0.00044998,61]
[378704412,1754967032959,-160.0,0.00044998,61]
[378704413,1754967032970,-160.0,0.00044998,61]
[378704414,1754967032980,-160.0,0.00044998,61]
[378704415,1754967033172,-160.0,0.00044998,61]
[378704416,1754967033181,-160.0,0.00044998,61]
[378704417,1754967033191,-274.54676904,0.00044998,61]
[378704418,1754967033201,-1888.0,0.00044998,61]
[378704419,1754967033211,-1957.856,0.00044998,61]
[378704420,1754967033220,-2030.296672,0.00044998,61]
[378704421,1754967033230,-2105.41764886,0.00044998,61]
[378704422,1754967033239,-2183.31810187,0.00044998,61]
[378704423,1754967033249,-2264.10087164,0.00044998,61]
[378704424,1754967033258,-2347.87260389,0.00044998,61]
[378704425,1754967033268,-2434.74389024,0.00044998,61]
[378704426,1754967033279,-2524.82941417,0.00044998,61]
[378704427,1754967033289,-2248.37485618,0.00044998,61]
[378704428,1754967033299,-500.0,0.00044998,61]
[378704429,1754967033309,-500.0,0.00044998,61]
[378704430,1754967033319,-500.0,0.00044998,61]
[378704431,1754967033328,-500.0,0.00044998,61]
[378704432,1754967033338,-500.0,0.00044998,61]
[378704433,1754967033348,-500.0,0.00044998,61]
[378704434,1754967033357,-500.0,0.00044998,61]
[378704435,1754967033367,-500.0,0.00044998,61]
[378704436,1754967033376,-500.0,0.00044998,61]
[378704437,1754967033385,-500.0,0.00044998,61]
[378704438,1754967033395,-500.0,0.00044998,61]
[378704439,1754967033404,-500.0,0.00044998,61]
[378704440,1754967033414,-500.0,0.00044998,61]
[378704441,1754967033423,-500.0,0.00044998,61]
[378704442,1754967033432,-500.0,0.00044998,61]
[378704443,1754967033442,-500.0,0.00044998,61]
[378704444,1754967033451,-500.0,0.00044998,61]
[378704445,1754967033461,-500.0,0.00044998,61]